Cogmind - Beta 13 @@@ ROGUE MODE // 2024.06.07 @ 10:05:21 Player: Kat Result: Self-destructed Performance ------------- Evolutions (1) 500 Regions Visited (5) 1000 Robots Destroyed (71) 355 Value Destroyed (1482) 1482 Prototype IDs (4) 80 Alien Tech Used (0) 0 Bonus (2) 2 TOTAL SCORE: 3419 Bonus ------- High Alert Combat Kills 2 Cogmind --------- Core Integrity 249/400 Matter 300/300 Energy 49/100 System Corruption 0% Temperature Cool (0) Movement Treading (160) Location -8/Mines Parts ------- > --- POWER (1) -------- (None) > --- PROPULSION (2) --- Light Treads Light Treads > --- UTILITY (4) ------ Cooling System Medium Storage Unit Hardened Light Armor Plating > --- WEAPON (2) ------- Heavy Hammer > --- INVENTORY (10) --- Improved Heat Sink Improved Targeting Computer Hardlight Generator Hacking Suite Field Laser Heavy Particle Cannon Heavy Particle Cannon Heavy Particle Cannon Rocket Launcher Plasma Cutter Peak State ------------ > --- POWER ------------ Heavy Ion Engine > --- PROPULSION ------- Light Treads Light Treads > --- UTILITY ---------- Improved Heat Sink Medium Storage Unit Sensor Array Hardlight Generator > --- WEAPON ----------- Field Laser Field Laser > --- INVENTORY -------- Light Treads Light Treads Targeting Computer Hardened Light Armor Plating Hacking Suite Field Laser Field Laser Rocket Launcher Plasma Cutter Heavy Hammer [Rating: 21] Favorites ----------- Power Improved Ion Engine Engine Improved Ion Engine Power Core Light Nuclear Core Propulsion Light Treads Treads Light Treads Leg Aluminum Leg Utility Medium Storage Unit Device Sensor Array Storage Medium Storage Unit Protection Hardened Light Armor Plating Weapon Light EM Pulse Cannon Energy Gun Field Laser Energy Cannon Light EM Pulse Cannon Launcher Rocket Launcher Impact Weapon Heavy Hammer Build | -11 -10 -9 -9 -9 -8 ------- Run | Yrd Mat Mat Min Exi Min Slots Evolved 2 | . . 2 . . . Power . | . . . . . . Propulsion . | . . . . . . Utility 2 | . . 2 . . . Weapon . | . . . . . . Parts Attached 50 | 7 16 19 4 3 1 Power 5 | 1 2 2 . . . Engine 4 | 1 1 2 . . . Core 1 | . 1 . . . . Reactor . | . . . . . . Propulsion 12 | 2 4 5 1 . . Treads 10 | . 4 5 1 . . Leg 2 | 2 . . . . . Wheel . | . . . . . . Hover . | . . . . . . Flight . | . . . . . . Utility 13 | 2 5 4 . 2 . Device 7 | 1 2 3 . 1 . Storage 2 | 1 1 . . . . Processor . | . . . . . . Hackware . | . . . . . . Protection 4 | . 2 1 . 1 . Artifact . | . . . . . . Weapon 20 | 2 5 8 3 1 1 Energy Gun 7 | 2 1 3 1 . . Energy Cannon 9 | . 4 5 . . . Ballistic Gun . | . . . . . . Ballistic Cannon . | . . . . . . Launcher 3 | . . . 2 . 1 Special Weapon . | . . . . . . Impact Weapon 1 | . . . . 1 . Slashing Weapon . | . . . . . . Piercing Weapon . | . . . . . . Special Melee Weapon . | . . . . . . Unidentified Prototypes 4 | . . 4 . . . Corrupted Parts 1 | . 1 . . . . System Corruption 9 | . 9 . . . . Parts Lost 5 | . . 2 . . 3 Power 1 | . . . . . 1 Propulsion 1 | . . 1 . . . Utility 1 | . . . . . 1 Weapon 2 | . . 1 . . 1 Highest Loss Streak 2 | . . 1 . . 2 To Critical Strikes . | . . . . . . Average Slot Usage (%) 99 | . 99 99 100 100 90 Engine 7 | . 8 5 11 11 8 Core 3 | . 5 5 . . . Treads 21 | . 21 21 22 22 22 Leg 1 | . 6 . . . . Device 19 | . 8 24 33 22 18 Storage 11 | . 14 11 11 11 11 Protection 7 | . 5 8 . 10 11 Energy Gun 6 | . 5 6 10 11 . Energy Cannon 12 | . 22 15 . . . Launcher 2 | . . . 10 4 7 Impact Weapon 1 | . . . . 6 11 Naked Turns . | . . . . . . Heaviest Build 38 | 15 26 38 37 36 32 Greatest Support 40 | 20 40 40 40 40 40 Greatest Overweight (x) 1 | 1 1 1 . . . Average Overweight (x) . | . . . . . . Largest Inventory Capacity 10 | 8 10 10 10 10 10 Average Capacity 9 | 7 9 10 10 10 10 Most Carried 10 | 3 10 10 10 10 10 Average Carried 9 | 2 8 9 9 9 10 Final Capacity 10 | 8 10 10 10 10 10 Final Carried 10 | 3 10 10 10 10 10 Class Distribution -------------------- 97% | Mutant Dominant Class ---------------- Mutant | -10/Materials Mutant | -9/Materials Mutant | -9/Mines Mutant | -9/Exiles Mutant | -8/Mines Resources | -11 -10 -9 -9 -9 -8 ----------- Run | Yrd Mat Mat Min Exi Min Matter Collected 831 | 270 201 196 95 . 69 Remotely . | . . . . . . Salvage Created 2425 | 191 634 1394 53 . 153 Parts 136 | 14 39 68 10 . 5 Haulers Intercepted 6 | . 2 4 . . . Recyclers Shooed 4 | 1 . 3 . . . Parts Field Recycled . | . . . . . . Retrieved Matter . | . . . . . . Parts Self-Destructed . | . . . . . . Prevented . | . . . . . . Kills | -11 -10 -9 -9 -9 -8 ------- Run | Yrd Mat Mat Min Exi Min Combat Hostiles Destroyed 40 | . 11 18 8 . 3 Melee 2 | . . . . . 2 Guns 11 | . 2 9 . . . Cannons 18 | . 9 9 . . . AOE 8 | . . . 8 . . Classes Destroyed 12 | 2 5 4 . . 1 Worker 4 | . . 3 . . 1 Builder 1 | . . . . . 1 Tunneler 6 | 4 . . . . 2 Hauler 6 | . 2 4 . . . Recycler 4 | 1 1 2 . . . Operator 2 | . 2 . . . . Watcher 8 | . 3 5 . . . Swarmer 13 | . 5 . 8 . . Grunt 17 | . 6 9 . . 2 Brawler 1 | . . 1 . . . Duelist 2 | . . 1 . . 1 Sentry 7 | . . 7 . . . Best Kill Streak 6 | 5 6 5 4 . 4 Combat Bots Only 4 | . 4 4 4 . 2 Max Kills in Single Turn 3 | 1 2 1 3 . 1 Gunslinging . | . . . . . . Exploded 3 | . . . 3 . . Melee 1 | . . . . . 1 Uniques/NPCs Destroyed . | . . . . . . Combat | -11 -10 -9 -9 -9 -8 -------- Run | Yrd Mat Mat Min Exi Min Hostile Shots Fired 149 | . 33 89 2 . 25 Missed 35 | . 8 21 1 . 5 Damage Taken 1712 | . 256 992 58 . 406 Core 163 | . 12 119 . . 32 Absorbed by Shields . | . . . . . . Regen/Repaired (Parts) 57 | . 57 . . . . Core Remaining (%) 97 | 100 95 . . . . Volleys Fired 133 | 11 33 80 5 . 4 Largest 2 | 2 2 2 2 . 1 Hottest 150 | 100 112 150 96 . 33 Shots Fired 262 | 22 66 160 10 . 4 Gun 127 | 22 30 70 5 . . Cannon 126 | . 36 90 . . . Launcher 9 | . . . 5 . 4 Special . | . . . . . . Kinetic . | . . . . . . Thermal 201 | 22 30 144 5 . . Explosive 9 | . . . 5 . 4 Electromagnetic 52 | . 36 16 . . . Robot Hit Streak 18 | 8 11 18 . . 1 Robot Miss Streak 7 | 1 3 7 2 . 2 Penetration Max . | . . . . . . Secondary Targets . | . . . . . . Shots Hit Robots 165 | 15 40 97 . . 13 Core Hits 81 | 7 22 40 7 . 5 Critical Kills . | . . . . . . Critical Parts Destroyed 3 | . . . . . 3 Critical Strikes 7 | . 1 3 . . 3 Burn 4 | . 1 3 . . . Smash 3 | . . . . . 3 Melee Attacks 17 | . . . . 3 14 Impact 17 | . . . . 3 14 Slashing . | . . . . . . Piercing . | . . . . . . Sneak Attacks 3 | . . . . . 3 Combat Hostiles . | . . . . . . Follow-up Attacks . | . . . . . . Damage Inflicted 4707 | 195 817 2367 433 . 895 Guns 1161 | 188 227 746 . . . Cannons 2061 | . 586 1475 . . . Explosions 756 | . . 80 433 . 243 Melee 652 | . . . . . 652 Ramming 77 | 7 4 66 . . . Kinetic . | . . . . . . Thermal 2413 | 188 227 1998 . . . Explosive 676 | . . . 433 . 243 Electromagnetic 889 | . 586 303 . . . Impact 652 | . . . . . 652 Slashing . | . . . . . . Piercing . | . . . . . . Highest Corruption 9 | . 9 . . . . Average Corruption 9 | . 9 . . . . Corruption Purged . | . . . . . . Corruption Blocked . | . . . . . . Effects 25 | . 25 . . . . Message Errors 6 | . 6 . . . . Matter Fused 8 | . 8 . . . . Heat Flow Errors 3 | . 3 . . . . Energy Discharges 4 | . 4 . . . . Data Loss (minor) 1 | . 1 . . . . Data Loss (major) 2 | . 2 . . . . Alerts 1 | . 1 . . . . Overload Shots . | . . . . . . Overflow Damage 314 | . 6 53 8 . 247 Projectiles 47 | . 6 41 . . . Explosions 27 | . . 12 8 . 7 Melee 240 | . . . . . 240 Knockbacks 3 | . . . . . 3 Impact 3 | . . . . . 3 Kinetic . | . . . . . . Secondary . | . . . . . . Self-Inflicted Damage 145 | . . 23 48 . 74 Shots 4 | . . 1 1 . 2 Rammed 14 | . 3 11 . . . Targets Rammed 16 | 2 3 11 . . . Kicked 2 | 2 . . . . . Crushed . | . . . . . . Highest Temperature 426 | 234 303 426 . . . Average Temperature 117 | 95 104 130 . . . Received Heat Transfer 696 | . 93 414 . . 189 Effects 6 | . . 6 . . . Energy Bleed 3 | . . 3 . . . Interference 1 | . . 1 . . . Damage (minor) 2 | . . 2 . . . Siege Activations . | . . . . . . Robots Corrupted . | . . . . . . Combat Hostiles . | . . . . . . Parts Fried 9 | . 3 2 . . 4 Impact Corruptions 10 | . . . . . 10 Robots Melted . | . . . . . . Combat Hostiles . | . . . . . . Parts Melted 18 | 2 2 14 . . . Heat Transferred 5058 | 555 740 3763 . . . Parts Sabotaged . | . . . . . . Parts Stolen . | . . . . . . Parts Stripped . | . . . . . . Power Chain Reactions 1 | . . 1 . . . Alert | -11 -10 -9 -9 -9 -8 ------- Run | Yrd Mat Mat Min Exi Min Peak Influence 410 | 25 189 408 410 . 104 Initial 159 | . 16 . 159 . . Average 98 | 10 60 98 366 . 24 Maximum Alert Level 2 | . . 2 2 . . Low Security (%) 79 | 100 100 72 3 . 100 Level 1 15 | . . 26 27 . . Level 2 5 | . . 1 69 . . Level 3 . | . . . . . . Level 4 . | . . . . . . Level 5 . | . . . . . . High Security . | . . . . . . Max Security . | . . . . . . Squads Dispatched 5 | . 2 3 . . . Investigation 4 | . 1 3 . . . Extermination . | . . . . . . Reinforcement 1 | . 1 . . . . Assault . | . . . . . . Garrison . | . . . . . . Intercept . | . . . . . . Searches Triggered . | . . . . . . Construction Impeded . | . . . . . . Haulers Reinforced . | . . . . . . Active Scanning Responses . | . . . . . . Cargo Convoy Interrupts . | . . . . . . Stealth | -11 -10 -9 -9 -9 -8 --------- Run | Yrd Mat Mat Min Exi Min Distress Signals 3 | . . 3 . . . Communications Jammed . | . . . . . . Distress Signals . | . . . . . . Times Spotted 50 | . 20 26 1 . 3 Peak Tracking Total 4 | . 4 4 1 . 3 Tactical Retreats 2 | . 1 1 . . . Traps | -11 -10 -9 -9 -9 -8 ------- Run | Yrd Mat Mat Min Exi Min Traps Triggered . | . . . . . . Indirectly . | . . . . . . Trap Hack Attempts . | . . . . . . Triggered . | . . . . . . Disarmed . | . . . . . . Reprogrammed . | . . . . . . Reused . | . . . . . . Traps Extracted . | . . . . . . Installed . | . . . . . . Triggered . | . . . . . . Machines | -11 -10 -9 -9 -9 -8 ---------- Run | Yrd Mat Mat Min Exi Min Machines Disabled 4 | . . 1 2 . 1 Max in Single Turn 2 | . . 1 2 . 1 Machines Repaired . | . . . . . . Machines Dismantled . | . . . . . . Machines Sabotaged . | . . . . . . Overloaded Fab Kills . | . . . . . . Hacking | -11 -10 -9 -9 -9 -8 --------- Run | Yrd Mat Mat Min Exi Min Machines Accessed 15 | . 5 6 . 4 . Terminals 9 | . 4 5 . . . Fabricators . | . . . . . . Repair Stations 2 | . 1 1 . . . Recycling Units . | . . . . . . Scanalyzers . | . . . . . . Garrison Access . | . . . . . . Total Hacks 46 | . 22 20 . 4 . Successful 25 | . 12 9 . 4 . Failed 21 | . 10 11 . . . Catastrophic 2 | . 2 . . . . Database Lockouts . | . . . . . . Manual 32 | . 16 16 . . . Terminals 32 | . 16 16 . . . Fabricators . | . . . . . . Repair Stations 10 | . 6 4 . . . Recycling Units . | . . . . . . Scanalyzers . | . . . . . . Garrison Access . | . . . . . . Terminal Hacks 6 | . 1 1 . 4 . Record 4 | . . . . 4 . Terminal Index 2 | . 1 1 . . . Fabricator Hacks . | . . . . . . Repair Station Hacks 6 | . 4 2 . . . Scan Component 4 | . 2 2 . . . Repair 2 | . 2 . . . . Recycling Unit Hacks . | . . . . . . Scanalyzer . | . . . . . . Garrison Access Hacks . | . . . . . . Unauthorized Hacks 13 | . 7 6 . . . Terminals 13 | . 7 6 . . . Assimilate 2 | . 2 . . . . Botnet 9 | . 4 5 . . . Operators 2 | . 1 1 . . . Fabricators . | . . . . . . Repair Stations . | . . . . . . Recycling Units . | . . . . . . Scanalyzers . | . . . . . . Garrison Access . | . . . . . . Data Cores Recovered 1 | . 1 . . . . Used . | . . . . . . Hacking Detections 11 | . 5 6 . . . Full Trace Events 6 | . 3 3 . . . Feedback Events . | . . . . . . Feedback Blocked . | . . . . . . Robot Schematics Acquired . | . . . . . . Robots Built . | . . . . . . Authchips . | . . . . . . Time . | . . . . . . Total Robot Build Rating . | . . . . . . Part Schematics Acquired . | . . . . . . Parts Built . | . . . . . . Authchips . | . . . . . . Time . | . . . . . . Total Part Build Rating . | . . . . . . Parts Repaired 2 | . 2 . . . . Time 79 | . 79 . . . . Parts Recycled . | . . . . . . Recycled Matter . | . . . . . . Retrieved Matter . | . . . . . . Retrieved Components . | . . . . . . Parts Scanalyzed . | . . . . . . Part Schematics Acquired . | . . . . . . Parts Damaged . | . . . . . . Bothacking | -11 -10 -9 -9 -9 -8 ------------ Run | Yrd Mat Mat Min Exi Min Used RIF Installer . | . . . . . . Robots Hacked . | . . . . . . Non-combat . | . . . . . . Combat . | . . . . . . Robot Hacks Applied . | . . . . . . Relay Couplers Released . | . . . . . . Fabnet Peak Effective % . | . . . . . . Robots Rewired . | . . . . . . Allies Hacked . | . . . . . . Hacks Repelled . | . . . . . . Allies | -11 -10 -9 -9 -9 -8 -------- Run | Yrd Mat Mat Min Exi Min Total Allies . | . . . . . . Largest Group . | . . . . . . Highest-Rated Group . | . . . . . . Highest-Rated Ally . | . . . . . . Total Orders . | . . . . . . Ally Attacks . | . . . . . . Total Damage . | . . . . . . Kills . | . . . . . . Allies Corrupted . | . . . . . . Allies Melted . | . . . . . . Intel | -11 -10 -9 -9 -9 -8 ------- Run | Yrd Mat Mat Min Exi Min Robot Analysis Total . | . . . . . . Derelict Logs Recovered . | . . . . . . Drone Launches . | . . . . . . Drone Recoveries . | . . . . . . Exploration | -11 -10 -9 -9 -9 -8 ------------- Run | Yrd Mat Mat Min Exi Min Turns Passed 6286 | 106 1678 2554 392 1081 475 Spaces Moved 2717 | 49 710 817 208 668 265 Core 6 | 6 . . . . . Treads 2457 | . 499 817 208 668 265 Legs 254 | 43 211 . . . . Wheels . | . . . . . . Hover . | . . . . . . Flight . | . . . . . . Fastest Speed 50 | 50 120 160 160 160 160 Average Speed 156 | 112 149 160 160 160 160 Slowest Speed 240 | 120 190 240 160 160 160 Overloaded Moves . | . . . . . . Propulsion Burnouts . | . . . . . . Robots Hopped . | . . . . . . Cave-ins Triggered . | . . . . . . Exploration Rate (%) 60 | 4 95 57 55 95 58 Regions Visited 5 Branch Regions 3 Pre-discovered Areas . | . . . . . . Known Exits Taken . | . . . . . . Unknown Exits Taken 5 | 1 1 1 1 1 . Scrap Searched . | . . . . . . Spaces Dug . | . . . . . . Terrain Destroyed 102 | . . 14 47 . 41 Melee . | . . . . . . Projectile 10 | . . 10 . . . AOE 92 | . . 4 47 . 41 Terrain Rammed . | . . . . . . Walls Destroyed . | . . . . . . Machines Disabled . | . . . . . . Actions | -11 -10 -9 -9 -9 -8 --------- Run | Yrd Mat Mat Min Exi Min Total 4453 | 74 1263 1897 257 675 287 Wait 1437 | 3 464 929 38 . 3 Move 2712 | 48 709 816 207 667 265 Hop . | . . . . . . Pick Up 38 | 3 19 14 1 1 . Fast Attach 24 | 7 4 13 . . . Attach 3 | . . 2 . 1 . Detach 2 | . 2 . . . . Swap 24 | . 12 5 4 2 1 Drop 47 | . 17 27 2 1 . Fire 133 | 11 33 80 5 . 4 Melee 17 | . . . . 3 14 Ram . | . . . . . . Kick 2 | 2 . . . . . Crush 14 | . 3 11 . . . Escape Stasis . | . . . . . . Rewire . | . . . . . . Trap . | . . . . . . Miscellaneous . | . . . . . . Route ------- -11/Scrapyard -10/Materials (discovered 4 exits: *Mat x3 / [*Min]) -9/Materials (discovered 2 exits: [*Mat] / [*Min]) -9/Mines (discovered 2 exits: [*Mat] / *Exi) -9/Exiles (discovered 2 exits: [*Min x2]) -8/Mines History --------- Turn | Location | Event 53 | -11/Scrapyard | Discovered new exit (range 16) 107 | -11/Scrapyard | Entered Materials 304 | -10/Materials | Build established: Mutant 350 | -10/Materials | Discovered new exit (range 11) 737 | -10/Materials | Discovered new exit (range 13) 1180 | -10/Materials | Repaired Corrupted Imp. Heat Sink 1242 | -10/Materials | Repaired Lgt. Treads 1457 | -10/Materials | Discovered new exit (range 9) 1716 | -10/Materials | Discovered new exit (range 16) 1785 | -10/Materials | Entered another Materials area 1785 | -9/Materials | Evolved 2 slots: Utility x2 3026 | -9/Materials | Discovered new exit (range 13) 3302 | -9/Materials | Discovered new exit (range 12) 4339 | -9/Materials | Entered Mines 4525 | -9/Mines | Discovered new exit (range 16) 4540 | -9/Mines | Received a Rocket Launcher from a helpful Derelict 4725 | -9/Mines | Deemed a non-threat by the Exiles lab entrance 4725 | -9/Mines | Discovered new exit (range 5) 4731 | -9/Mines | Entered Exiles 4731 | -9/Exiles | Found Exiles lab abandoned 4759 | -9/Exiles | Discovered new exit (range 15) 5402 | -9/Exiles | Discovered new exit (range 10) 5812 | -9/Exiles | Entered Mines 6287 | -8/Mines | Self-destructed Last Messages --------------- 06182_ G-47 Trooper suffers critical hit (Smash). 06182_ Destroyed Imp. Heat Sink. 06182_ G-47 Trooper system corrupted by crushing effect. 06182_ Lgt. Nuclear Core fried. 06182_ G-47 Trooper destroyed. 06184_ K-01 Serf collects debris. 06188_ Acquired 7 matter. 06192_ K-01 Serf collects debris. 06192_ Sneak attack on T-07 Excavator. 06192_ T-07 Excavator suffers critical hit (Smash). 06192_ Destroyed Lgt. Ion Engine. 06192_ Destroyed Imp. Terrain Scanner. 06192_ T-07 Excavator system corrupted by crushing effect. 06193_ T-07 Excavator system terminally corrupted. 06193_ Wheel fried. 06195_ K-01 Serf collects debris. 06208_ Sneak attack on T-07 Excavator. 06208_ T-07 Excavator destroyed. 06254_ U-05 Engineer lays Concrete. 06255_ U-05 Engineer builds a Wall. Map ----- +----------------------------------------------------+ | ?????????# #??????????????????????????????????? | | ?????????#|####??????????????????????????????????? | | ?????????#%#?????????????????????????????????????? | | ?????????#=#?????????????????????????????????????? | | ?????????#!#?????????????????????????????????????? | | ?????????# #?????????????????????????????????????? | | ?????????# #??####???????????????????????????????? | | #####????# #?## ##??????????????????????????????? | | #????# ### ##?????????????????????????????? | | #????# ## #?????????????????????????????? | | ######%#=% ##????????????????????????????? | | #????????????????????????????? | | = #????????????????????????????? | | # ###### # #????????????????????????????? | | # #??### ## #??#?????????????????????????? | | ##### #?## # ### #? #?????????????????????????? | | ????# #?# # ### ##? #?????????????????????????? | | ????# ### ## ## ##? #?????????????????????????? | | ???## ## # ## ##????????????????????????? | | ??## # # # #????????????????????????? | | ??# %### ## ##????????????????????????? | | ??# ## # ### ##?????????????????????????? | | ?## ##?# ##??????????????????????????? | | ## ### ##?## ######## #??????????????????? | | # ###?####??# ## t #??????????????????? | | # ##?????????# ## @ #??????????????????? | | ##??????????## #####??????????????????? | | ##????????????## #??????????????????????? | | ##??????????????#########??????????????????????? | | #??????????????????????????????????????????????? | | #???????????####???????????????????????????????? | | #??????????## ##??????????????????????????????? | | ##???????### ####???????????????????????????? | | ##?????## ##??????????????????????????? | | ##???## ####???????????????????????? | | ##?## ##??????????????????????? | | ### ###????????????????????? | | ##???????????????????? | | #??? #???????????????????? | | ### " #??? #???????????????????? | | ??## #??? #???????????????????? | | ???## ## " ##?# #????????????????????? | | ##??####### ## #?????????????????????? | | #????????## #?????????????????????? | | ##????????######### #?????????????????????? | | #????????????????## #?????????????????????? | | #?????????????????# #?????????????????????? | | #?????????????????# ##?????????????????????? | | ##????????????????# ###??????????????????????? | | #????????????????# ##????????????????????????? | +----------------------------------------------------+ Best States ------------- Heat Dissipation 50 Energy Generation 14 Energy Capacity 280 Matter Stores 300 Matter Capacity 300 Sight Range 16 Robot Scan Range 14 Terrain Scan Density 10 Armor Coverage 150 Evasion (%) 55 Recoil Reduction 2 Item Schematics ----------------- None Robot Schematics ------------------ None Fabricated ------------ Nothing Alien Tech Used ----------------- None Achievements -------------- None Challenges ------------ None Game ------ Seed TransportTargetingStick Manual? 0 Play Time 00:39:26 Cumulative 31.3 hours Start 2024.06.07 @ 09:27:35 End 2024.06.07 @ 10:05:21 Sessions 1 Manual Loads 0 Difficulty Rogue Special Mode None Game No. 67 Rogue 67 Adventurer 0 Explorer 0 Win Type - Total 0 Types 0/0/0/0/0/0/0/0/0 Lore% 21 Gallery% 27 Achievement% 23 Wizard Run 0 Options --------- Layout 0 ASCII 0 Keyboard 0 Movement Numpad Keybinds 0 Fullscreen 2 Font 18/Terminus Map View 76x50 Zoom Use 0% Tactical HUD 1 Map Filters NONE Filters NONE Steam 1 RUN: 176ca184-069b-405f-b1ef-3c361e96aaf7